Cogmind - Beta 16.1 @@@ ROGUE MODE // 2026.02.16 @ 19:06:47 Player: Hazmat Result: Destroyed by 22-WES(R) with Subdweller Laser Performance ------------- Evolutions (0) 0 Regions Visited (3) 600 Robots Destroyed (26) 130 Value Destroyed (763) 763 Prototype IDs (0) 0 Alien Tech Used (0) 0 Bonus (155) 155 TOTAL SCORE: 1648 Bonus ------- Follower Combat Kills 155 Cogmind --------- Core Integrity 0/250 Matter 218/300 Energy 245/250 System Corruption 2% Temperature Cool (6) Movement Walking (125) Location -10/Subcaves Parts ------- > --- POWER (1) -------- Ion Engine > --- PROPULSION (2) --- Aluminum Leg Titanium Leg (fused) > --- UTILITY (2) ------ Small Storage Unit Targeting Computer > --- WEAPON (2) ------- Heavy Battle Rifle Assault Cannon > --- INVENTORY (8) ---- Aluminum Leg Aluminum Leg Aluminum Leg Huge Storage Unit Makeshift Light Armor Plating Makeshift Hacking Suite Subdweller Machine Gun Makeshift Hammer Peak State ------------ > --- POWER ------------ Ion Engine > --- PROPULSION ------- Titanium Leg VSS Leg > --- UTILITY ---------- Small Storage Unit Targeting Computer > --- WEAPON ----------- Heavy Battle Rifle Assault Cannon > --- INVENTORY -------- Aluminum Leg Aluminum Leg Aluminum Leg Aluminum Leg Aluminum Leg Aluminum Leg Improved Trap Extractor Mining Laser [Rating: 17] Favorites ----------- Power Ion Engine Engine Ion Engine Propulsion Titanium Leg Treads Light Treads Leg Titanium Leg Utility Small Storage Unit Device Heat Sink Storage Small Storage Unit Processor Targeting Computer Weapon Assault Cannon Ballistic Gun Heavy Battle Rifle Ballistic Cannon Assault Cannon Special Weapon Mining Laser Build | -11 -10 -10 -10 ------- Run | Yrd Mat Min Sub Slots Evolved . | . . . . Power . | . . . . Propulsion . | . . . . Utility . | . . . . Weapon . | . . . . Parts Attached 23 | 6 6 10 1 Power 3 | 1 1 1 . Engine 3 | 1 1 1 . Core . | . . . . Reactor . | . . . . Propulsion 10 | 2 2 5 1 Treads 2 | 2 . . . Leg 8 | . 2 5 1 Wheel . | . . . . Hover . | . . . . Flight . | . . . . Utility 3 | 1 2 . . Device 1 | . 1 . . Storage 1 | 1 . . . Processor 1 | . 1 . . Hackware . | . . . . Protection . | . . . . Artifact . | . . . . Weapon 7 | 2 1 4 . Energy Gun . | . . . . Energy Cannon . | . . . . Ballistic Gun 5 | 2 . 3 . Ballistic Cannon 1 | . . 1 . Launcher . | . . . . Special Weapon 1 | . 1 . . Impact Weapon . | . . . . Slashing Weapon . | . . . . Piercing Weapon . | . . . . Special Melee Weapon . | . . . . Unidentified Prototypes . | . . . . Parts Lost 5 | . . 4 1 Power 1 | . . 1 . Propulsion 1 | . . . 1 Utility . | . . . . Weapon 3 | . . 3 . Highest Loss Streak 4 | . . 4 1 To Critical Strikes . | . . . . Average Backups 7 | . 6 7 7 Power . | . . . . Propulsion 4 | . 4 5 3 Utility 1 | . . . 2 Weapon 1 | . . . 1 Tool/Special . | . . . . Unused Backups 15 | . 2 3 10 Power . | . . . . Propulsion 7 | . 1 3 3 Utility 4 | . . . 4 Weapon 4 | . 1 . 3 Tool/Special . | . . . . Average Slot Usage (%) 97 | . 97 97 96 Engine 13 | . 14 13 14 Treads 2 | . 14 . . Leg 23 | . 13 27 24 Storage 14 | . 14 14 14 Processor 12 | . 8 14 14 Ballistic Gun 17 | . 28 16 14 Ballistic Cannon 9 | . . 9 14 Peak Build Rating 17 | 6 7 17 17 Average Rating 12 | 4 6 13 14 On Entrance 7 | . 6 7 17 Avg Prop Armor Cover (%) . | . . . . Naked Turns . | . . . . Heaviest Build 19 | 12 15 19 19 Greatest Support 40 | 40 40 29 29 Greatest Overweight (x) 1 | . . . 1 Average Overweight (x) . | . . . . Largest Inventory Capacity 8 | 8 8 8 8 Average Capacity 7 | 6 8 8 8 Most Carried 8 | 2 8 8 8 Average Carried 7 | . 6 7 7 Final Capacity 8 | 8 8 8 8 Final Carried 8 | 2 8 8 8 Class Distribution -------------------- 100% | Mutant Dominant Class ---------------- Mutant | -10/Materials Mutant | -10/Mines Mutant | -10/Subcaves Resources | -11 -10 -10 -10 ----------- Run | Yrd Mat Min Sub Matter Collected 1023 | 243 214 352 214 Remotely . | . . . . Salvage Created 775 | . 332 212 231 Parts 57 | . 19 18 20 Haulers Intercepted . | . . . . Recyclers Shooed 1 | . 1 . . Parts Field Recycled . | . . . . Retrieved Matter . | . . . . Parts Self-Destructed 8 | . . . 8 Prevented . | . . . . Parts Restored . | . . . . Kills | -11 -10 -10 -10 ------- Run | Yrd Mat Min Sub Combat Hostiles Destroyed 23 | . 6 10 7 Melee 1 | . . 1 . Guns 17 | . 6 6 5 Cannons 5 | . . 3 2 Classes Destroyed 7 | . 3 2 2 Tunneler 1 | . . 1 . Recycler 1 | . 1 . . Watcher 1 | . 1 . . Swarmer 6 | . . 6 . Grunt 10 | . 6 4 . Sentry 1 | . . . 1 Subdweller 6 | . . . 6 Best Kill Streak 4 | . 2 4 1 Combat Bots Only 4 | . 2 4 1 Max Kills in Single Turn 1 | . 1 1 1 Gunslinging . | . . . . Exploded . | . . . . Melee 1 | . . 1 . Uniques/NPCs Destroyed . | . . . . Combat | -11 -10 -10 -10 -------- Run | Yrd Mat Min Sub Hostile Shots Fired 144 | . 30 84 30 Missed 38 | . 4 26 8 Hits 106 | . 26 58 22 Projectile 106 | . 26 58 22 Critical Strikes 2 | . . 2 . Damage Taken 1306 | . 306 589 411 Core 257 | . 24 130 103 Absorbed by Shields . | . . . . Core Remaining (%) 100 | 100 . . . Volleys Fired 107 | . 29 46 32 Largest 2 | . 2 2 2 Hottest 100 | . 40 100 70 Shots Fired 193 | . 58 71 64 Gun 144 | . 58 54 32 Cannon 46 | . . 14 32 Launcher . | . . . . Special 3 | . . 3 . Kinetic 190 | . 58 68 64 Thermal 3 | . . 3 . Explosive . | . . . . Electromagnetic . | . . . . Robot Hit Streak 7 | . 4 7 7 Robot Miss Streak 4 | . 4 3 4 Penetration Max . | . . . . Secondary Targets . | . . . . Shots Hit Robots 103 | . 32 42 29 Core Hits 47 | . 15 20 12 Critical Kills 1 | . . 1 . Critical Parts Destroyed 1 | . . . 1 Critical Strikes 3 | . . 1 2 Destroy 2 | . . 1 1 Blast 1 | . . . 1 Melee Attacks . | . . . . Impact . | . . . . Slashing . | . . . . Piercing . | . . . . Sneak Attacks . | . . . . Combat Hostiles . | . . . . Follow-up Attacks . | . . . . Damage Inflicted 1763 | . 417 691 655 Guns 1192 | . 417 455 320 Cannons 521 | . . 186 335 Explosions . | . . . . Melee . | . . . . Ramming 26 | . . 26 . Kinetic 1713 | . 417 641 655 Thermal 24 | . . 24 . Explosive . | . . . . Electromagnetic . | . . . . Impact . | . . . . Slashing . | . . . . Piercing . | . . . . Highest Corruption 2 | . 2 2 2 Average Corruption 2 | . 2 2 2 Corruption Purged . | . . . . Corruption Blocked . | . . . . Effects 33 | . 3 16 14 Message Errors 8 | . 1 1 6 Matter Fused 9 | . . 6 3 Heat Flow Errors 3 | . . 1 2 Energy Discharges 2 | . 1 . 1 Parts Fused 1 | . . 1 . Data Loss (minor) 8 | . 1 5 2 Weapon Failures 2 | . . 2 . Overload Shots . | . . . . Overflow Damage . | . . . . Projectiles . | . . . . Explosions . | . . . . Melee . | . . . . Knockbacks 3 | . . 2 1 Impact . | . . . . Kinetic 3 | . . 2 1 Secondary . | . . . . Self-Inflicted Damage . | . . . . Shots . | . . . . Rammed . | . . . . Targets Rammed 13 | . . 13 . Kicked 13 | . . 13 . Crushed . | . . . . Highest Temperature 235 | . 10 205 235 Average Temperature 44 | . 5 37 107 Received Heat Transfer 459 | . 168 198 93 Siege Activations . | . . . . Martial Activations . | . . . . Shielding Activations . | . . . . Robots Disrupted . | . . . . Combat Hostiles . | . . . . Robots Corrupted . | . . . . Combat Hostiles . | . . . . Parts Fried . | . . . . Impact Corruptions . | . . . . Robots Melted . | . . . . Combat Hostiles . | . . . . Parts Melted . | . . . . Heat Transferred 50 | . . 50 . Parts Sabotaged . | . . . . Parts Stolen . | . . . . Parts Stripped . | . . . . Power Chain Reactions . | . . . . Alert | -11 -10 -10 -10 ------- Run | Yrd Mat Min Sub Maximum Alert Level . | . . . . Low Security (%) 100 | 100 100 100 . Level 1 . | . . . . Level 2 . | . . . . Level 3 . | . . . . Level 4 . | . . . . Level 5 . | . . . . High Security . | . . . . Max Security . | . . . . Peak Influence 168 | . 80 168 . Initial 1 | . . 1 . Average 35 | . 22 45 . Influence Increases 613 | . 157 378 78 Destroy 0b10 Robot/C 400 | . 120 220 60 Destroy 0b10 Robot/NC 15 | . 10 5 . Destroy Leader 82 | . 22 50 10 Allied During Kill 12 | . . 4 8 Successful Hack 10 | . 5 5 . Disable Machine 15 | . . 15 . Destroy Structure 4 | . . 4 . Lose Combat Pursuer 75 | . . 75 . Influence Decreases 613 | . 153 382 78 Entered New Map 3 | . . 3 . Time Decay 560 | . 153 339 68 Lost Part 50 | . . 40 10 Squads Dispatched 2 | . 2 . . Investigation 2 | . 2 . . Extermination . | . . . . Reinforcement . | . . . . Assault . | . . . . Garrison . | . . . . Intercept . | . . . . Searches Triggered . | . . . . Construction Impeded . | . . . . Haulers Reinforced . | . . . . Active Scanning Responses . | . . . . Cargo Convoy Interrupts . | . . . . Stealth | -11 -10 -10 -10 --------- Run | Yrd Mat Min Sub Distress Signals . | . . . . Communications Jammed . | . . . . Distress Signals . | . . . . Times Spotted 38 | . 9 17 12 Peak Tracking Total 4 | . 4 4 2 Tactical Retreats 3 | . . 3 . Traps | -11 -10 -10 -10 ------- Run | Yrd Mat Min Sub Traps Triggered 3 | . 2 1 . Indirectly . | . . . . Trap Hack Attempts . | . . . . Triggered . | . . . . Disarmed . | . . . . Reprogrammed . | . . . . Reused . | . . . . Traps Extracted . | . . . . Installed . | . . . . Triggered . | . . . . Machines | -11 -10 -10 -10 ---------- Run | Yrd Mat Min Sub Machines Disabled 1 | . . 1 . Max in Single Turn 1 | . . 1 . Machines Repaired . | . . . . Machines Dismantled . | . . . . Machines Sabotaged . | . . . . Overloaded Fab Kills . | . . . . Hacking | -11 -10 -10 -10 --------- Run | Yrd Mat Min Sub Machines Accessed 8 | . 6 2 . Terminals 6 | . 5 1 . Fabricators . | . . . . Repair Stations . | . . . . Recycling Units 1 | . 1 . . Scanalyzers . | . . . . Garrison Access . | . . . . Total Hacks 24 | . 19 5 . Successful 12 | . 10 2 . Failed 12 | . 9 3 . Catastrophic 2 | . 2 . . Database Lockouts . | . . . . Manual 1 | . 1 . . Terminals 20 | . 16 4 . Fabricators . | . . . . Repair Stations . | . . . . Recycling Units 3 | . 3 . . Scanalyzers . | . . . . Garrison Access . | . . . . Terminal Hacks 10 | . 8 2 . Record 1 | . 1 . . Robot Analysis 1 | . 1 . . Open Door 1 | . . 1 . Branch Access Points 1 | . 1 . . Emergency Access Points 1 | . 1 . . Terminal Index 1 | . 1 . . Alert Level 1 | . 1 . . Maintenance Status 1 | . 1 . . Hauler Manifests 1 | . 1 . . Zone Layout 1 | . . 1 . Fabricator Hacks . | . . . . Repair Station Hacks . | . . . . Recycling Unit Hacks 2 | . 2 . . Report Inventory 1 | . 1 . . Retrieve Components 1 | . 1 . . Scanalyzer . | . . . . Garrison Access Hacks . | . . . . Unauthorized Hacks . | . . . . Terminals . | . . . . Fabricators . | . . . . Repair Stations . | . . . . Recycling Units . | . . . . Scanalyzers . | . . . . Garrison Access . | . . . . Data Cores Recovered . | . . . . Used . | . . . . Hacking Detections 6 | . 5 1 . Full Trace Events 1 | . 1 . . Feedback Events . | . . . . Feedback Blocked . | . . . . Robot Schematics Acquired . | . . . . Robots Built . | . . . . Authchips . | . . . . Time . | . . . . Total Robot Build Rating . | . . . . Part Schematics Acquired . | . . . . Parts Built . | . . . . Authchips . | . . . . Time . | . . . . Total Part Build Rating . | . . . . Part Studies Acquired . | . . . . Parts Repaired . | . . . . Time . | . . . . Parts Recycled . | . . . . Recycled Matter . | . . . . Retrieved Matter . | . . . . Retrieved Components 9 | . 9 . . Parts Scanalyzed . | . . . . Part Schematics Acquired . | . . . . Parts Damaged . | . . . . Bothacking | -11 -10 -10 -10 ------------ Run | Yrd Mat Min Sub Used RIF Installer . | . . . . Robots Hacked . | . . . . Non-combat . | . . . . Combat . | . . . . Robot Hacks Applied . | . . . . Relay Couplers Released . | . . . . Fabnet Peak Effective % . | . . . . Robots Rewired . | . . . . Allies Hacked . | . . . . Hacks Repelled . | . . . . Allies | -11 -10 -10 -10 -------- Run | Yrd Mat Min Sub Total Allies 3 | . . 3 . Largest Group 3 | . . 3 2 Highest-Rated Group 40 | . . 40 32 Highest-Rated Ally 16 | . . 16 16 Total Orders . | . . . . Ally Attacks 32 | . . 3 29 Total Damage 381 | . . 36 345 Kills 5 | . . 1 4 Allies Corrupted . | . . . . Allies Melted . | . . . . Intel | -11 -10 -10 -10 ------- Run | Yrd Mat Min Sub Active Infowar (turns) . | . . . . Robot Analysis Total 1 | . 1 . . Derelict Logs Recovered 3 | . . 2 1 Drone Launches . | . . . . Drone Recoveries . | . . . . Exploration | -11 -10 -10 -10 ------------- Run | Yrd Mat Min Sub Turns Passed 2755 | 59 489 944 1263 Spaces Moved 1834 | 35 279 669 851 Core 7 | 7 . . . Treads 134 | 28 106 . . Legs 1693 | . 173 669 851 Wheels . | . . . . Hover . | . . . . Flight . | . . . . Fastest Speed 50 | 50 120 105 110 Average Speed 127 | 138 135 111 136 Slowest Speed 200 | 160 160 120 200 Overloaded Moves . | . . . . Propulsion Burnouts . | . . . . Robots Hopped . | . . . . Potential Cave-ins . | . . . . Cave-ins Triggered . | . . . . Exploration Rate (%) 49 | 3 40 91 65 Regions Visited 3 Branch Regions 2 Pre-discovered Areas 2 | . . 1 1 Known Exits Taken 1 | . 1 . . Unknown Exits Taken 2 | 1 . 1 . Scrap Searched 6 | . . 3 3 Spaces Dug . | . . . . Terrain Destroyed 4 | . . 4 . Melee . | . . . . Projectile 4 | . . 4 . AOE . | . . . . Terrain Rammed . | . . . . Walls Destroyed . | . . . . Machines Disabled . | . . . . Actions | -11 -10 -10 -10 --------- Run | Yrd Mat Min Sub Total 2063 | 43 336 789 895 Wait 40 | . 4 34 2 Move 1831 | 34 278 668 851 Hop . | . . . . Pick Up 26 | 3 12 6 5 Fast Attach 9 | 5 1 3 . Attach 4 | 1 . 2 1 Detach . | . . . . Swap 13 | . 5 8 . Drop 20 | . 7 9 4 Fire 107 | . 29 46 32 Melee . | . . . . Ram . | . . . . Kick 13 | . . 13 . Crush . | . . . . Escape Stasis . | . . . . Rewire . | . . . . Trap . | . . . . Miscellaneous . | . . . . Route ------- -11/Scrapyard -10/Materials (discovered 3 exits: [*Mat] / *Min x2) -10/Mines (discovered 3 exits: [*Mat x2] / [*Sub]) -10/Subcaves (discovered 1 exit: [*Mat]) History --------- Turn | Location | Event 15 | -11/Scrapyard | Discovered new exit (range 16) 60 | -11/Scrapyard | Entered Materials 286 | -10/Materials | Discovered new exit (range 16) 313 | -10/Materials | Build established: Mutant 417 | -10/Materials | Identified exit to Mines 549 | -10/Materials | Entered Mines 656 | -10/Mines | Discovered new exit (range 6) 739 | -10/Mines | Found a hidden stash of uninstalled traps 758 | -10/Mines | Met a Derelict who couldn't figure out how to use a Trap Extractor 828 | -10/Mines | Core integrity fell below 50% 842 | -10/Mines | Lost 4 parts (1p3w) 929 | -10/Mines | A weapon hastily lodged in a ceiling crevice suddenly fell to the ground 985 | -10/Mines | Discovered new exit (range 9) 1229 | -10/Mines | Assisted by bots powering up and referring to "LRC-V3" 1262 | -10/Mines | Learned Materials stockpile data 1279 | -10/Mines | Learned location of Mines (-9) 1303 | -10/Mines | Received a Rocket Launcher from a helpful Derelict 1459 | -10/Mines | Discovered new exit (range 13) 1493 | -10/Mines | Entered Subcaves 1493 | -10/Subcaves | Accompanied by 2 allies 1572 | -10/Subcaves | Core integrity fell below 20% 1635 | -10/Subcaves | Learned location of Zion (-6) 1635 | -10/Subcaves | Met a Zionite searching for "candidates" 2154 | -10/Subcaves | Shifting Twisted Machinery released Sub. Power Source 2175 | -10/Subcaves | Shifting Twisted Machinery released Flamer 2340 | -10/Subcaves | Shifting Twisted Machinery released Scrap Shield 2344 | -10/Subcaves | Shifting Twisted Machinery released Sub. Power Source 2525 | -10/Subcaves | Discovered new exit (range 11) 2564 | -10/Subcaves | A swath of the cavern ceiling suddenly collapsed 2715 | -10/Subcaves | Disturbed a concealed Subdweller 2745 | -10/Subcaves | Learned location of 1 exit from Materials 2756 | -10/Subcaves | Destroyed by 22-WES(R) with Subdweller Laser Last Messages --------------- 02346_ OQ-LOY(R): "SUBMAD!" 02351_ OQ-LOY(R) destroyed. 02369_ Acquired 24 matter. 02413_ Dropped Mining Laser. 02414_ Acquired Mak. Hammer. 02429_ System corrupted: Matter fused (-8). 02442_ Acquired 8 matter. 02447_ System corrupted: Component data lost. 02505_ OKOZ5TP2PDAFC55>KM/DW6L,LGINCXZ 02525_ EXIT=FOUND A swath of the cavern ceiling suddenly collapses. 02642_ System corrupted: Heat flow error (+199). 02667_ System corrupted: Matter fused (-9). 02675_ XO-TFB(u) tweaks Twisted Machinery. 02715_ ZW-GOK(R) angrily emerges from the Twisted Machinery. 02718_ ZW-GOK(R) destroyed. 02730_ Acquired 28 matter. 02731_ Acquired 3 matter. 02745_ Acquired derelict log, extracted data. Data stored: Materials exits (x1). Map ----- +----------------------------------------------------+ | ?????????????????????????????????????????????????? | | ?????????????????????????????????????????????????? | | ?????????????????????????????????????????????????? | | ?????????????????????????????????????????????????? | | ?????????????????????????????????????????????????? | | ?????????????????????????????????????????????????? | | ?????????????????????????????????????????????????? | | ?????????????????????????????????????????????????? | | ?????????????????????????????????? ??????????????? | | ????????????????????????????????? ?????????????? | | ????????????????????????????????? ?????????????? | | ????????????????????????????????# # ##??????????? | | ??????????????????????????????## ???????????? | | ?????????????????????????????? ????????????? | | ?????????????????????????????? #????????????? | | ?????????????????????######??? ##???????????? | | ???????????????????###"" ???# #???????????? | | ??????????????????##< " ??## #???????????? | | ??????????????????# ? ??# #???????????? | | ?????????????????##